Cogmind - Beta 14 @@@ ROGUE MODE // 2025.04.30 @ 20:35:16 Player: Polariusz Result: Destroyed by P-60 Hacker with Shock Rifle Performance ------------- Evolutions (2) 1000 Regions Visited (6) 1200 Robots Destroyed (70) 350 Value Destroyed (2937) 2937 Prototype IDs (3) 60 Alien Tech Used (0) 0 Bonus (1395) 1395 TOTAL SCORE: 6942 Bonus ------- High Alert Combat Kills 277 Follower Combat Kills 118 Entered Garrisons 200 Used RIF Installer 500 Aligned with FarCom 300 Cogmind --------- Core Integrity 0/550 Matter 300/300 Energy 98/100 System Corruption 4% Temperature Cool (1) Movement Walking (120) Location -8/Garrison Parts ------- > --- POWER (2) -------- (None) > --- PROPULSION (3) --- Carbon-fiber Leg > --- UTILITY (4) ------ Melee Analysis Suite Hacking Suite Hacking Suite > --- WEAPON (2) ------- Katana > --- INVENTORY (5) ---- Hacking Suite Hacking Suite Gauss Rifle Peak State ------------ > --- POWER ------------ Light Deuterium Engine Light Nuclear Core > --- PROPULSION ------- Improved Titanium Leg Improved Titanium Leg Improved Titanium Leg > --- UTILITY ---------- Heavy Armor Plating Hacking Suite Hacking Suite > --- WEAPON ----------- Assault Cannon Heavy Flail > --- INVENTORY -------- Improved Titanium Leg Hacking Suite Hacking Suite [Rating: 37] Favorites ----------- Power Light Nuclear Core Engine Ion Engine Power Core Light Nuclear Core Propulsion Improved Titanium Leg Leg Improved Titanium Leg Utility Hacking Suite Device Cooling System Storage Small Storage Unit Processor Targeting Computer Hackware Hacking Suite Protection Core Shielding Weapon Katana Energy Gun Medium Laser Ballistic Gun Minigun Ballistic Cannon Assault Cannon Special Weapon Field Lobotomy Kit Impact Weapon Hammer Slashing Weapon Katana Build | -11 -10 -10 -10 -9 -8 -8 ------- Run | Yrd Mat Min Exi Min Mat Gar Slots Evolved 4 | . . . . . 4 . Power 1 | . . . . . 1 . Propulsion 1 | . . . . . 1 . Utility 2 | . . . . . 2 . Weapon . | . . . . . . . Parts Attached 95 | 6 12 4 . 3 30 40 Power 17 | 1 3 1 . . 7 5 Engine 8 | 1 2 1 . . 3 1 Core 9 | . 1 . . . 4 4 Reactor . | . . . . . . . Propulsion 22 | 2 5 2 . . 7 6 Treads . | . . . . . . . Leg 22 | 2 5 2 . . 7 6 Wheel . | . . . . . . . Hover . | . . . . . . . Flight . | . . . . . . . Utility 12 | 1 1 . . 1 5 4 Device 1 | . . . . . 1 . Storage 1 | 1 . . . . . . Processor 2 | . . . . . . 2 Hackware 2 | . . . . . 2 . Protection 6 | . 1 . . 1 2 2 Artifact . | . . . . . . . Weapon 44 | 2 3 1 . 2 11 25 Energy Gun 2 | . 1 1 . . . . Energy Cannon . | . . . . . . . Ballistic Gun 15 | 2 . . . 1 2 10 Ballistic Cannon 8 | . . . . . 4 4 Launcher . | . . . . . . . Special Weapon 1 | . . . . 1 . . Impact Weapon 4 | . 2 . . . 2 . Slashing Weapon 14 | . . . . . 3 11 Piercing Weapon . | . . . . . . . Special Melee Weapon . | . . . . . . . Unidentified Prototypes 1 | . . . . 1 . . Parts Lost 25 | . 3 2 . . 2 18 Power 10 | . 1 1 . . 1 7 Propulsion 5 | . 1 . . . . 4 Utility 5 | . . . . . 1 4 Weapon 5 | . 1 1 . . . 3 Highest Loss Streak 5 | . 1 2 . . 1 5 To Critical Strikes . | . . . . . . . Average Slot Usage (%) 92 | . 98 98 100 100 86 89 Engine 8 | . 13 13 14 14 8 2 Core 4 | . . . . . 6 8 Leg 26 | . 27 28 28 28 25 25 Storage 5 | . 14 14 14 14 1 . Processor 1 | . . . . . . 6 Hackware 10 | . . . . . 15 18 Protection 10 | . 13 14 14 14 8 8 Energy Gun 2 | . 2 13 14 . . . Ballistic Gun 8 | . 18 . . 13 2 11 Ballistic Cannon 2 | . . . . . 6 . Impact Weapon 5 | . 6 14 14 13 3 . Slashing Weapon 3 | . . . . . 3 6 Peak Build Rating 37 | 6 9 7 8 17 37 35 Average Rating 21 | 4 6 6 7 9 31 30 On Entrance 11 | . 6 7 7 8 17 33 Naked Turns . | . . . . . . . Heaviest Build 33 | 13 14 15 15 22 33 23 Greatest Support 60 | 20 20 20 20 20 60 60 Greatest Overweight (x) 1 | . 1 . . 1 1 . Average Overweight (x) . | . . . . . . . Largest Inventory Capacity 8 | 8 8 8 8 8 8 5 Average Capacity 6 | 7 8 8 8 8 5 5 Most Carried 7 | 5 6 6 5 7 7 5 Average Carried 4 | 1 3 3 4 5 4 3 Final Capacity 8 | 8 8 8 8 8 5 5 Final Carried 6 | 1 6 4 5 6 4 3 Class Distribution -------------------- 41% | Mutant 37% | Hacker-Mutant 16% | Scavenger-Mutant 4% | Commander-Mutant Dominant Class ---------------- Mutant | -10/Materials Mutant | -10/Mines Mutant | -10/Exiles Mutant | -9/Mines Hacker-Mutant | -8/Materials Hacker-Mutant | -8/Garrison Resources | -11 -10 -10 -10 -9 -8 -8 ----------- Run | Yrd Mat Min Exi Min Mat Gar Matter Collected 2010 | 249 277 64 . 97 553 770 Remotely . | . . . . . . . Salvage Created 2585 | . 790 180 . 54 547 1014 Parts 136 | . 41 12 . 1 21 61 Haulers Intercepted . | . . . . . . . Recyclers Shooed 1 | . . 1 . . . . Parts Field Recycled . | . . . . . . . Retrieved Matter . | . . . . . . . Parts Self-Destructed . | . . . . . . . Prevented . | . . . . . . . Kills | -11 -10 -10 -10 -9 -8 -8 ------- Run | Yrd Mat Min Exi Min Mat Gar Combat Hostiles Destroyed 56 | . 18 6 . . 9 23 Melee 18 | . 3 2 . . 4 9 Guns 30 | . 13 4 . . 3 10 Cannons 6 | . . . . . 2 4 Classes Destroyed 11 | . 6 1 . . 1 3 Worker 3 | . 1 . . . 2 . Builder 1 | . 1 . . . . . Tunneler 2 | . . 2 . . . . Operator 4 | . 3 . . . 1 . Watcher 4 | . 1 . . . 3 . Swarmer 9 | . 3 4 . . . 2 Grunt 31 | . 15 2 . . 5 9 Duelist 1 | . . . . . . 1 Sentry 9 | . . . . . 4 5 Hunter 4 | . . . . . . 4 Programmer 2 | . . . . . . 2 Best Kill Streak 6 | . 6 3 . . 2 2 Combat Bots Only 5 | . 5 3 . . 2 2 Max Kills in Single Turn 2 | . 2 1 . . 1 1 Gunslinging 1 | . 1 . . . . . Exploded . | . . . . . . . Melee 1 | . 1 1 . . 1 1 Uniques/NPCs Destroyed . | . . . . . . . Combat | -11 -10 -10 -10 -9 -8 -8 -------- Run | Yrd Mat Min Exi Min Mat Gar Hostile Shots Fired 408 | . 108 26 . 1 78 195 Missed 110 | . 32 4 . 1 19 54 Damage Taken 4349 | . 860 274 . . 925 2290 Core 793 | . 154 85 . . 136 418 Absorbed by Shields . | . . . . . . . Redirected to Shielding 50 | . 31 17 . . 2 . Regen/Repaired (Parts) 125 | . . . . . 125 . Core Remaining (%) 52 | 100 . . . 4 . . Volleys Fired 174 | . 51 15 . 2 44 62 Largest 2 | . 2 1 . 1 2 2 Hottest 72 | . 70 50 . 23 69 72 Shots Fired 276 | . 99 15 . 2 55 105 Gun 228 | . 99 15 . 1 31 82 Cannon 43 | . . . . . 20 23 Launcher . | . . . . . . . Special 5 | . . . . 1 4 . Kinetic 240 | . 83 . . 1 51 105 Thermal 31 | . 16 15 . . . . Explosive . | . . . . . . . Electromagnetic . | . . . . . . . Robot Hit Streak 15 | . 15 3 . 5 13 8 Robot Miss Streak 4 | . 4 2 . . 4 4 Penetration Max 1 | . . . . . . 1 Secondary Targets 4 | . 2 . . . . 2 Max Gunslinging Chain 1 | . 1 . . . . 1 Shots Hit Robots 248 | . 88 18 . 2 52 88 Core Hits 100 | . 34 7 . 1 19 39 Critical Kills 3 | . 1 1 . . . 1 Critical Parts Destroyed 7 | . 3 1 . . 3 . Critical Strikes 18 | . 6 2 . . 5 5 Burn 2 | . 2 . . . . . Destroy 2 | . 1 . . . . 1 Blast 1 | . . . . . 1 . Smash 8 | . 3 2 . . 3 . Sever 5 | . . . . . 1 4 Melee Attacks 166 | . 25 13 . 1 29 98 Impact 50 | . 25 13 . 1 11 . Slashing 116 | . . . . . 18 98 Piercing . | . . . . . . . Sneak Attacks 14 | . 5 4 . . 2 3 Combat Hostiles 2 | . . 1 . . . 1 Follow-up Attacks . | . . . . . . . Damage Inflicted 5282 | . 1395 472 . 15 1311 2089 Guns 2137 | . 775 100 . 15 306 941 Cannons 736 | . . . . . 371 365 Explosions . | . . . . . . . Melee 2409 | . 620 372 . . 634 783 Ramming . | . . . . . . . Kinetic 2587 | . 589 . . 15 677 1306 Thermal 286 | . 186 100 . . . . Explosive . | . . . . . . . Electromagnetic . | . . . . . . . Impact 1245 | . 620 372 . . 253 . Slashing 1164 | . . . . . 381 783 Piercing . | . . . . . . . Highest Corruption 4 | . 4 4 4 4 . 4 Average Corruption 3 | . 2 4 4 4 . 2 Corruption Purged . | . . . . . . . Corruption Blocked . | . . . . . . . Effects 45 | . 10 13 6 15 . 1 Message Errors 9 | . 3 3 2 . . 1 Matter Fused 14 | . 3 3 3 5 . . Heat Flow Errors 6 | . . 3 . 3 . . Energy Discharges 5 | . . 2 1 2 . . Data Loss (minor) 7 | . 1 2 . 4 . . Data Loss (major) 3 | . 2 . . 1 . . Alerts 1 | . 1 . . . . . Overload Shots . | . . . . . . . Overflow Damage 442 | . 185 48 . . 198 11 Projectiles . | . . . . . . . Explosions 3 | . . . . . . 3 Melee 439 | . 185 48 . . 198 8 Knockbacks 15 | . 2 . . . 11 2 Impact 3 | . 2 . . . 1 . Kinetic 11 | . . . . . 9 2 Secondary 1 | . . . . . 1 . Self-Inflicted Damage 153 | . . . . . . 153 Shots 1 | . . . . . . 1 Rammed . | . . . . . . . Targets Rammed . | . . . . . . . Kicked . | . . . . . . . Crushed . | . . . . . . . Highest Temperature 392 | . 184 251 . 222 392 272 Average Temperature 77 | . 58 77 . 100 91 71 Received Heat Transfer 1674 | . 441 126 . . 495 612 Effects 3 | . . . . . 3 . Shutdowns 2 | . . . . . 2 . Matter Decay 1 | . . . . . 1 . Siege Activations . | . . . . . . . Robots Corrupted 5 | . 2 1 . . 2 . Combat Hostiles 1 | . 1 . . . . . Parts Fried 8 | . 2 4 . . 2 . Impact Corruptions 21 | . 8 3 . . 10 . Robots Melted 1 | . 1 . . . . . Combat Hostiles 1 | . 1 . . . . . Parts Melted 5 | . 4 1 . . . . Heat Transferred 999 | . 703 296 . . . . Parts Sabotaged . | . . . . . . . Parts Stolen . | . . . . . . . Parts Stripped . | . . . . . . . Power Chain Reactions . | . . . . . . . Alert | -11 -10 -10 -10 -9 -8 -8 ------- Run | Yrd Mat Min Exi Min Mat Gar Peak Influence 1136 | . 352 246 . 5 231 1136 Initial 150 | . . 67 . . . 150 Average 235 | . 203 115 . . 73 572 Maximum Alert Level 4 | . 1 1 . . 1 4 Low Security (%) 59 | 100 44 80 . 100 97 3 Level 1 25 | . 55 19 . . 2 45 Level 2 3 | . . . . . . 11 Level 3 11 | . . . . . . 39 Level 4 . | . . . . . . . Level 5 . | . . . . . . . High Security . | . . . . . . . Max Security . | . . . . . . . Squads Dispatched 9 | . 6 . . . 3 . Investigation 3 | . 1 . . . 2 . Extermination . | . . . . . . . Reinforcement 6 | . 5 . . . 1 . Assault . | . . . . . . . Garrison . | . . . . . . . Intercept . | . . . . . . . Searches Triggered . | . . . . . . . Construction Impeded . | . . . . . . . Haulers Reinforced . | . . . . . . . Active Scanning Responses . | . . . . . . . Cargo Convoy Interrupts . | . . . . . . . Stealth | -11 -10 -10 -10 -9 -8 -8 --------- Run | Yrd Mat Min Exi Min Mat Gar Distress Signals 2 | . 1 . . . 1 . Communications Jammed . | . . . . . . . Distress Signals . | . . . . . . . Times Spotted 96 | . 33 7 . 1 28 27 Peak Tracking Total 7 | . 7 3 . 1 3 4 Tactical Retreats 9 | . 2 . . . 4 3 Traps | -11 -10 -10 -10 -9 -8 -8 ------- Run | Yrd Mat Min Exi Min Mat Gar Traps Triggered 5 | . 3 . . . . 2 Indirectly . | . . . . . . . Trap Hack Attempts . | . . . . . . . Triggered . | . . . . . . . Disarmed . | . . . . . . . Reprogrammed . | . . . . . . . Reused . | . . . . . . . Traps Extracted . | . . . . . . . Installed . | . . . . . . . Triggered . | . . . . . . . Machines | -11 -10 -10 -10 -9 -8 -8 ---------- Run | Yrd Mat Min Exi Min Mat Gar Machines Disabled 4 | . . . . . . 4 Max in Single Turn 2 | . . . . . . 2 Garrison Relay 2 | . . . . . . 2 Phase Generator 1 | . . . . . . 1 Machines Repaired . | . . . . . . . Machines Dismantled . | . . . . . . . Machines Sabotaged . | . . . . . . . Overloaded Fab Kills . | . . . . . . . Hacking | -11 -10 -10 -10 -9 -8 -8 --------- Run | Yrd Mat Min Exi Min Mat Gar Machines Accessed 17 | . 3 . . . 12 2 Terminals 13 | . 3 . . . 8 2 Fabricators . | . . . . . . . Repair Stations 1 | . . . . . 1 . Recycling Units . | . . . . . . . Scanalyzers 2 | . . . . . 2 . Garrison Access 1 | . . . . . 1 . Total Hacks 59 | . 10 . . . 47 2 Successful 45 | . 7 . . . 36 2 Failed 13 | . 3 . . . 10 . Catastrophic . | . . . . . . . Database Lockouts 1 | . . . . . 1 . Manual 1 | . . . 1 . . . Terminals 41 | . 10 . . . 29 2 Fabricators . | . . . . . . . Repair Stations 8 | . . . . . 8 . Recycling Units . | . . . . . . . Scanalyzers 9 | . . . . . 9 . Garrison Access 1 | . . . . . 1 . Terminal Hacks 30 | . 7 . . . 21 2 Record 6 | . 1 . . . 5 . Prototype ID Bank 1 | . . . . . 1 . Open Door 1 | . . . . . . 1 Emergency Access Points 3 | . 1 . . . 2 . Terminal Index 2 | . 1 . . . 1 . Recycling Unit Index 1 | . . . . . 1 . Alert Level 4 | . 2 . . . 2 . Locate Traps 2 | . 1 . . . 1 . Dispatch Records 2 | . 1 . . . 1 . Security Status 1 | . . . . . 1 . Investigation Status 2 | . . . . . 2 . Registered Components 1 | . . . . . 1 . Zone Layout 3 | . . . . . 3 . Security Stations 1 | . . . . . . 1 Fabricator Hacks . | . . . . . . . Repair Station Hacks 7 | . . . . . 7 . Scan Component 4 | . . . . . 4 . Repair 3 | . . . . . 3 . Recycling Unit Hacks . | . . . . . . . Scanalyzer 7 | . . . . . 7 . Insert Component 3 | . . . . . 3 . Analyze 4 | . . . . . 4 . Garrison Access Hacks 1 | . . . . . 1 . Unlock Access 1 | . . . . . 1 . Unauthorized Hacks . | . . . . . . . Terminals . | . . . . . . . Fabricators . | . . . . . . . Repair Stations . | . . . . . . . Recycling Units . | . . . . . . . Scanalyzers . | . . . . . . . Garrison Access . | . . . . . . . Data Cores Recovered . | . . . . . . . Used . | . . . . . . . Hacking Detections 10 | . 2 . . . 8 . Full Trace Events 3 | . . . . . 3 . Feedback Events . | . . . . . . . Feedback Blocked . | . . . . . . . Robot Schematics Acquired . | . . . . . . . Robots Built . | . . . . . . . Authchips . | . . . . . . . Time . | . . . . . . . Total Robot Build Rating . | . . . . . . . Part Schematics Acquired 3 | . . . . . 3 . Parts Built . | . . . . . . . Authchips . | . . . . . . . Time . | . . . . . . . Total Part Build Rating . | . . . . . . . Parts Repaired 3 | . . . . . 3 . Time 126 | . . . . . 126 . Parts Recycled . | . . . . . . . Recycled Matter . | . . . . . . . Retrieved Matter . | . . . . . . . Retrieved Components . | . . . . . . . Parts Scanalyzed 3 | . . . . . 3 . Part Schematics Acquired 3 | . . . . . 3 . Parts Damaged . | . . . . . . . Bothacking | -11 -10 -10 -10 -9 -8 -8 ------------ Run | Yrd Mat Min Exi Min Mat Gar Used RIF Installer 1 | . . . . . . 1 Robots Hacked . | . . . . . . . Non-combat . | . . . . . . . Combat . | . . . . . . . Robot Hacks Applied . | . . . . . . . Relay Couplers Released 10 | . . . . . . 10 Machine Destruction 10 | . . . . . . 10 Fabnet Peak Effective % . | . . . . . . . Robots Rewired . | . . . . . . . Allies Hacked . | . . . . . . . Hacks Repelled . | . . . . . . . Allies | -11 -10 -10 -10 -9 -8 -8 -------- Run | Yrd Mat Min Exi Min Mat Gar Total Allies 6 | . . 1 . 1 4 . Largest Group 5 | . . 1 . 1 5 . Highest-Rated Group 93 | . . 31 . 16 93 . Highest-Rated Ally 31 | . . 31 . 16 29 . Total Orders . | . . . . . . . Ally Attacks 65 | . . 10 . . 55 . Total Damage 678 | . . 168 . . 510 . Kills 8 | . . 2 . . 6 . Allies Corrupted . | . . . . . . . Allies Melted . | . . . . . . . Field Lobotomies 5 | . . . . 1 4 . Intel | -11 -10 -10 -10 -9 -8 -8 ------- Run | Yrd Mat Min Exi Min Mat Gar Robot Analysis Total . | . . . . . . . Derelict Logs Recovered 2 | . . 1 . 1 . . Drone Launches . | . . . . . . . Drone Recoveries . | . . . . . . . Exploration | -11 -10 -10 -10 -9 -8 -8 ------------- Run | Yrd Mat Min Exi Min Mat Gar Turns Passed 7594 | 134 1281 608 307 664 2498 2102 Spaces Moved 4607 | 44 833 439 256 469 1414 1152 Core 11 | 11 . . . . . . Treads . | . . . . . . . Legs 4596 | 33 833 439 256 469 1414 1152 Wheels . | . . . . . . . Hover . | . . . . . . . Flight . | . . . . . . . Fastest Speed 50 | 50 120 120 120 120 120 120 Average Speed 124 | 102 120 120 120 122 130 125 Slowest Speed 190 | 120 190 120 120 190 190 130 Overloaded Moves . | . . . . . . . Propulsion Burnouts . | . . . . . . . Robots Hopped . | . . . . . . . Cave-ins Triggered . | . . . . . . . Exploration Rate (%) 65 | 4 94 90 69 76 77 50 Regions Visited 6 Branch Regions 3 Pre-discovered Areas . | . . . . . . . Known Exits Taken 1 | . . . . . 1 . Unknown Exits Taken 5 | 1 1 1 1 1 . . Scrap Searched 2 | . . 1 . 1 . . Spaces Dug 25 | . 4 1 . 1 5 14 Terrain Destroyed 102 | . 4 1 . 1 7 89 Melee 24 | . 4 1 . 1 5 13 Projectile 6 | . . . . . 2 4 AOE 72 | . . . . . . 72 Terrain Rammed . | . . . . . . . Walls Destroyed . | . . . . . . . Machines Disabled . | . . . . . . . Actions | -11 -10 -10 -10 -9 -8 -8 --------- Run | Yrd Mat Min Exi Min Mat Gar Total 5938 | 133 980 482 256 555 1976 1556 Wait 787 | 77 37 8 . 78 416 171 Move 4601 | 43 832 438 255 468 1413 1152 Hop . | . . . . . . . Pick Up 74 | 7 16 2 1 2 25 21 Fast Attach . | . . . . . . . Attach 41 | 6 4 2 . . 14 15 Detach 1 | . . . . . 1 . Swap 54 | . 8 2 . 3 16 25 Drop 37 | . 7 2 . 1 18 9 Fire 174 | . 51 15 . 2 44 62 Melee 166 | . 25 13 . 1 29 98 Ram . | . . . . . . . Kick . | . . . . . . . Crush . | . . . . . . . Escape Stasis 3 | . . . . . . 3 Rewire . | . . . . . . . Trap . | . . . . . . . Miscellaneous . | . . . . . . . Route ------- -11/Scrapyard -10/Materials (discovered 5 exits: [*Mat x3] / [*Min x2]) -10/Mines (discovered 3 exits: [*Mat x2] / *Exi) -10/Exiles -9/Mines -8/Materials (discovered 3 exits: [*Fac x2] / Gar) -8/Garrison (discovered 1 exit: [*Mat]) History --------- Turn | Location | Event 11 | -11/Scrapyard | Discovered new exit (range 14) 135 | -11/Scrapyard | Entered Materials 224 | -10/Materials | Discovered new exit (range 14) 301 | -10/Materials | Build established: Mutant 553 | -10/Materials | Discovered new exit (range 16) 582 | -10/Materials | Discovered new exit (range 15) 1112 | -10/Materials | Core integrity fell below 50% 1161 | -10/Materials | Discovered new exit (range 6) 1195 | -10/Materials | Discovered new exit (range 16) 1416 | -10/Materials | Entered Mines 1433 | -10/Mines | Core integrity fell below 20% 1445 | -10/Mines | Discovered new exit (range 13) 1540 | -10/Mines | Received a Mining Laser from a helpful Derelict 1742 | -10/Mines | Discovered new exit (range 13) 1963 | -10/Mines | Deemed a non-threat by the Exiles lab entrance 1964 | -10/Mines | Discovered new exit (range 5) 2024 | -10/Mines | Entered Exiles 2053 | -10/Exiles | Met 8R-AWN 2074 | -10/Exiles | Met EX-HEX 2120 | -10/Exiles | Met EX-DEC 2164 | -10/Exiles | Met EX-BIN 2180 | -10/Exiles | Aligned with FarCom system 2182 | -10/Exiles | Given EX-Vault access code 2209 | -10/Exiles | Opened EX-Vault 2215 | -10/Exiles | Found Prototype Special Weapon 2239 | -10/Exiles | Warned to stay clear of 0b10 Research branches 2318 | -10/Exiles | Discovered new exit (range 11) 2331 | -10/Exiles | Left Exiles lab with Field Lobotomy Kit 2331 | -10/Exiles | Entered Mines 2386 | -9/Mines | Met a Derelict bent on vengeance 2713 | -9/Mines | Learned Materials trap positions 2951 | -9/Mines | Discovered new exit (range 7) 2954 | -9/Mines | Identified Field Lobotomy Kit 2973 | -9/Mines | Assimilated G-47 Trooper with FLK Orb 2995 | -9/Mines | Entered Materials 2995 | -8/Materials | Accompanied by 1 ally 2995 | -8/Materials | Evolved 4 slots: Power x1, Propulsion x1, Utility x2 2996 | -8/Materials | Loaded intel: 21 trap records 3133 | -8/Materials | Assimilated G-47 Trooper with FLK Orb 3161 | -8/Materials | Assimilated G-47 Trooper with FLK Orb 3173 | -8/Materials | Assimilated G-50 Soldier with FLK Orb 3178 | -8/Materials | Assimilated G-47 Trooper with FLK Orb 3905 | -8/Materials | Discovered new exit (range 5) 4104 | -8/Materials | Build established: Hacker-Mutant 4298 | -8/Materials | Discovered new exit (range 16) 4592 | -8/Materials | Central database locked down 5293 | -8/Materials | Repaired Imp. Titanium Leg 5333 | -8/Materials | Repaired Lgt. Deuterium Engine 5379 | -8/Materials | Repaired Imp. Titanium Leg 5489 | -8/Materials | Identified exit to Garrison 5493 | -8/Materials | Entered Garrison 5523 | -8/Garrison | Installed Relay Interface Framework 5723 | -8/Garrison | Triggered checkpoint 5943 | -8/Garrison | Triggered checkpoint 6230 | -8/Garrison | Learned Materials security intel 6463 | -8/Garrison | Triggered checkpoint 6514 | -8/Garrison | Core integrity fell below 50% 6521 | -8/Garrison | Lost 3 parts (2p1n) 6727 | -8/Garrison | Garrison Relay disabled 6805 | -8/Garrison | Garrison Relay disabled 6823 | -8/Garrison | Build established: Scavenger-Mutant 6844 | -8/Garrison | Phase Generator disabled 6945 | -8/Garrison | Triggered checkpoint 7040 | -8/Garrison | Lost 5 parts (1p1n2u1w) 7458 | -8/Garrison | Discovered new exit (range 3) 7583 | -8/Garrison | Core integrity fell below 20% 7595 | -8/Garrison | Destroyed by P-60 Hacker with Shock Rifle Last Messages --------------- G-47 Trooper destroyed. Acquired Katana. Dropped Katana. Acquired 57 matter. Acquired Melee Analysis Suite. Acquired 45 matter. EXIT=FOUND Slug penetrates Wall. P-60 Hacker springs to life. Minigun destroyed. P-60 Hacker destroyed. Imp. Titanium Leg destroyed. Destroyed Target Analyzer. Carbon-fiber Leg destroyed. Lgt. Nuclear Core destroyed. Lgt. Armor Plating destroyed. P-60 Hacker destroyed. AMWA1|C5DFG#%GZW#89A 4V ALERT: Garrison interior compromised. P-60 Hacker Gravmag System severed. Map ----- +----------------------------------------------------+ | | | | | | | | | | | | | | | | | | | | | | | | | | | | | | | | | ?????????????????????????????????????????????????? | | ?????????????????????????????????????????????????? | | ?????????????????????????????????????????????????? | | ?????????????????????????????????????????????????? | | ?????????????????????????????????????????????????? | | ?????????????????????????????????????????????????? | | ???????????????????????#######???????????????????? | | ???????????????????????# = ????????????????????? | | ???????????????????????#p[# #????????????????????? | | ???????????????????????##@# # ##?????????????????? | | ???????????????????????#|!+%+! #?????????????????? | | ???????????????????????#==#|# #?????????????????? | | ???????????????????????#### #??#?????????????????? | | ???????????????????######## ##???????????????????? | | ???????????????????#""""" #???????????????????? | | ???????????????????#" " #???????????????????? | | ???????????????????#" #???????????????????? | | ?????????????????###" " ##################### | | ?????????????????#"""" """ | | ??????????????????## " ######### ########### | | ???????????????????# #???????# #?????????? | | ???????????????????# #???????#+#?????????? | | ???????????????????# #?????? #????????? | | ???????????????????##### #####?????# < #????????? | | ???????????????????????# #?????????# #????????? | | ???????????????????????# #?????????# ###????????? | | ???????????????????????# ########### ???????????? | | ???????????????????????# #??????????? | | ???????????????????????##### ####### ???????????? | | ???????????????????????????# #?????# ???????????? | | ???????????????????????????# #?????# ???????????? | | ???????????????????????????# #?????# ???????????? | | ????????????????????######## ####### #??????????? | | ????????????????????# #??????????? | +----------------------------------------------------+ Best States ------------- Heat Dissipation 53 Energy Generation 23 Energy Capacity 310 Matter Stores 300 Matter Capacity 300 Sight Range 16 Terrain Scan Density 10 Armor Coverage 600 Core Shielding 20 Evasion (%) 55 Targeting Accuracy 5 Melee Accuracy 5 Offensive Hacking 20 Item Schematics ----------------- Imp. Titanium Leg | -8/Materials | Scanalyzed Minigun | -8/Materials | Scanalyzed Hacking Suite | -8/Materials | Scanalyzed Robot Schematics ------------------ None Fabricated ------------ Nothing Alien Tech Used ----------------- None Achievements -------------- The More The Merrier Challenges ------------ None Game ------ Seed TerrabombSuspensionRigger Manual? 0 Play Time 01:14:29 Cumulative 16.7 hours Start 2025.04.29 @ 21:16:44 End 2025.04.30 @ 20:35:16 Sessions 5 Manual Loads 0 Difficulty Rogue Special Mode None Game No. 16 Rogue 16 Adventurer 0 Explorer 0 Win Type - Total 0 Types 0/0/0/0/0/0/0/0/0 Lore% 12 Gallery% 18 Achievement% 17 Wizard Run 0 Options --------- Layout 1 ASCII 0 Keyboard 0 Movement Mouse Keybinds 0 Fullscreen 1 Font 24/Smallcaps Map View 50x35 Zoom Use 0% Tactical HUD 0 Map Filters NONE Filters NONE Steam 1 RUN: f6b13743-c5c7-4605-a81b-863e2f9f8196